bitfinex-derivatives/quotes_BTCF0:USTF0_20210708
["timestamp","ask_amount","ask_price","bid_price","bid_amount"]
[1625734813683,0.1806731,32536.0,32534.0,0.82626498]
[1625734813834,0.78241345,32537.0,32534.0,0.82626498]
[1625734813985,0.78241345,32537.0,32535.0,3.95302588]
[1625734814436,0.78241345,32537.0,32536.0,0.55927096]
[1625734814735,1.14294776,32537.0,32536.0,0.55927096]
[1625734814885,1.14294776,32537.0,32536.0,0.84836096]
[1625734815188,0.24057544,32537.0,32536.0,0.84836096]
[1625734815487,0.78195798,32537.0,32536.0,0.84836096]
[1625734815637,0.4210964,32537.0,32536.0,0.84836096]
[1625734816163,0.24057544,32537.0,32536.0,0.84836096]
[1625734816462,0.24057544,32537.0,32536.0,0.79136096]
[1625734816762,0.78154948,32537.0,32536.0,0.79136096]
[1625734816911,0.78154948,32537.0,32536.0,0.50227096]
[1625734817663,0.87183143,32537.0,32536.0,0.50227096]
[1625734817965,0.78154948,32537.0,32536.0,0.50227096]
[1625734818111,0.87179293,32537.0,32536.0,0.50227096]
[1625734818413,0.33081889,32537.0,32536.0,0.50227096]
[1625734818562,0.24057544,32537.0,32536.0,0.50227096]
[1625734822242,0.24057544,32537.0,32536.0,0.73081096]
[1625734822406,0.24057544,32540.0,32536.0,0.73081096]
[1625734822541,0.24057544,32543.0,32536.0,0.73081096]
[1625734822845,0.24057544,32543.0,32537.0,0.00362517]
[1625734823292,0.24057544,32543.0,32542.0,0.48115088]
[1625734823444,0.24057544,32543.0,32542.0,0.58115088]
[1625734823594,0.24057544,32543.0,32542.0,1.03753688]
[1625734823896,0.24057544,32543.0,32542.0,1.30055198]
[1625734825397,0.9852,32545.0,32542.0,1.30055198]
[1625734825701,0.9852,32545.0,32543.0,0.00362457]
[1625734826151,0.9852,32545.0,32544.0,0.558867]
[1625734826602,0.9852,32545.0,32544.0,0.56249168]
[1625734827200,1.22577544,32545.0,32544.0,0.56249168]
[1625734829080,0.7808,32545.0,32544.0,0.56249168]
[1625734829231,0.24057544,32551.0,32544.0,1.04364256]
[1625734829681,0.24057544,32551.0,32544.0,1.03554256]
[1625734829831,0.24057544,32551.0,32545.0,0.00362411]
[1625734830131,0.24057544,32551.0,32550.0,0.1]
[1625734830284,0.24057544,32555.0,32550.0,0.1]
[1625734830285,0.24057544,32555.0,32550.0,0.41506]
[1625734830433,0.5099362,32560.0,32550.0,0.41506]
[1625734830641,0.5099362,32560.0,32559.0,5.4766]
[1625734830735,0.24057544,32560.0,32559.0,5.81534]
[1625734831067,0.24057544,32560.0,32559.0,6.271637]
[1625734831335,0.24057544,32560.0,32559.0,6.85641128]
[1625734831937,0.24057544,32560.0,32559.0,6.94801128]
[1625734832122,0.24057544,32560.0,32559.0,6.85641128]
[1625734832237,0.24057544,32563.0,32559.0,6.85641128]
[1625734832389,0.02232944,32570.0,32560.0,0.5]
[1625734832751,1.25537646,32575.0,32560.0,0.5]
[1625734832752,0.31987077,32577.0,32560.0,0.50362231]
[1625734832890,0.19647077,32577.0,32561.0,0.518489]
[1625734833020,0.53697584,32582.0,32569.0,0.1]
[1625734833177,1.25289272,32583.0,32569.0,0.1]
[1625734833325,0.24057544,32581.0,32577.0,0.24057544]
[1625734833468,0.53697669,32580.0,32577.0,0.24057544]
[1625734833600,0.77753862,32581.0,32577.0,0.24057544]
[1625734833740,0.77753862,32581.0,32578.0,0.002106]
[1625734833887,0.77753862,32581.0,32580.0,0.1]
[1625734833888,0.24057544,32581.0,32580.0,0.1]
[1625734834938,1.24057544,32581.0,32580.0,0.1]
[1625734835090,1.7763526,32581.0,32580.0,0.1]
[1625734835240,3.56211468,32581.0,32580.0,0.1]
[1625734835391,3.80269012,32581.0,32574.0,0.24057544]
[1625734835575,4.11471012,32581.0,32574.0,0.24057544]
[1625734835691,4.11471012,32581.0,32580.0,0.1]
[1625734835692,2.32894804,32581.0,32580.0,0.1]
[1625734835840,1.32894804,32581.0,32580.0,0.1]
[1625734836141,1.32894804,32581.0,32574.0,0.24057544]
[1625734836291,2.04333738,32581.0,32574.0,0.24057544]
[1625734836441,0.79317088,32581.0,32574.0,0.24057544]
[1625734836592,0.79317088,32581.0,32580.0,0.1]
[1625734836921,1.32825893,32581.0,32580.0,0.1]
[1625734837276,0.48115088,32581.0,32580.0,0.43989]
[1625734838470,0.48115088,32581.0,32580.0,0.1]
[1625734839375,1.0152914,32581.0,32580.0,0.1]
[1625734839974,0.48115088,32581.0,32580.0,0.1]
[1625734842465,0.48115088,32581.0,32580.0,0.35792]
[1625734842701,0.48115088,32581.0,32580.0,0.820825]
[1625734842828,0.48115088,32581.0,32580.0,5.327325]
[1625734843276,0.24057544,32584.0,32580.0,5.327325]
[1625734843428,0.24057544,32584.0,32583.0,0.48115088]
[1625734843729,0.24057544,32584.0,32583.0,0.93153288]
[1625734844177,0.24057544,32584.0,32583.0,1.03153288]
[1625734844328,0.24057544,32584.0,32583.0,0.79095744]
[1625734845529,0.24057544,32587.0,32583.0,1.08898744]
[1625734845977,0.24057544,32587.0,32583.0,0.98898744]
[1625734846818,0.24057544,32587.0,32583.0,0.69095744]
[1625734847106,0.24057544,32587.0,32586.0,0.1]
[1625734847408,0.24057544,32587.0,32586.0,0.34057544]
[1625734847555,0.24057544,32587.0,32586.0,0.79788944]
[1625734855155,0.24057544,32587.0,32586.0,0.34057544]
[1625734855741,0.24057544,32587.0,32586.0,0.1]
[1625734855897,1.24057544,32587.0,32586.0,0.1]
[1625734856046,0.24057544,32587.0,32586.0,0.1]
[1625734856831,1.24057544,32587.0,32586.0,0.1]
[1625734857091,0.24057544,32587.0,32586.0,0.1]
[1625734857441,0.72172632,32587.0,32586.0,0.10362067]
[1625734858891,0.97368632,32587.0,32586.0,0.10362067]
[1625734859973,1.97368632,32587.0,32586.0,0.10362067]
[1625734860542,0.97368632,32587.0,32586.0,0.10362067]
[1625734861293,1.97368632,32587.0,32586.0,0.10362067]
[1625734861593,1.97368632,32587.0,32586.0,2.067e-05]
[1625734861896,0.97368632,32587.0,32583.0,4.79037544]
[1625734862062,0.24057544,32587.0,32586.0,0.30308]
[1625734862194,0.24057544,32587.0,32586.0,0.765441]
[1625734862344,0.24057544,32587.0,32586.0,0.76906112]
[1625734862497,0.24057544,32587.0,32586.0,0.30670012]
[1625734863096,0.24057544,32587.0,32586.0,0.31575055]
[1625734863244,0.24057544,32587.0,32586.0,0.01267055]
[1625734863696,0.24057544,32587.0,32585.0,0.24057544]
[1625734863996,0.24057544,32587.0,32586.0,0.0126699]
[1625734865280,0.24057544,32587.0,32586.0,0.00361997]
[1625734865588,0.24057544,32587.0,32586.0,0.01267085]
[1625734866249,0.24057544,32587.0,32586.0,0.00361997]
[1625734866473,0.24057544,32587.0,32586.0,0.01267074]
[1625734869324,1.0,32591.0,32586.0,0.01267074]
[1625734869478,0.48115088,32592.0,32590.0,0.24057544]
[1625734869927,0.48115088,32592.0,32591.0,0.01267056]
[1625734873242,0.48115088,32592.0,32591.0,0.11267056]
[1625734879086,0.48115088,32592.0,32591.0,0.57178356]
[1625734880138,0.24057544,32592.0,32591.0,0.57178356]
[1625734880438,0.53564722,32599.0,32591.0,0.57178356]
[1625734880589,0.24057544,32600.0,32591.0,0.58988011]
[1625734880889,0.24057544,32600.0,32591.0,0.48988011]
[1625734881039,0.9749,32601.0,32592.0,0.03076136]
[1625734881189,0.9749,32601.0,32592.0,0.01266644]
[1625734881342,0.9749,32601.0,32600.0,0.1]
[1625734881488,0.9749,32601.0,32600.0,0.33528]
[1625734881642,0.9749,32601.0,32600.0,1.05700632]
[1625734881792,0.9749,32601.0,32600.0,1.51320189]
[1625734881957,0.9749,32601.0,32600.0,1.52224832]
[1625734882090,0.8711,32601.0,32600.0,1.52224832]
[1625734882242,0.53555661,32604.0,32600.0,1.52224832]
[1625734882393,1.25119708,32606.0,32600.0,1.52224832]
[1625734882545,1.25119708,32606.0,32600.0,1.51374832]
[1625734882698,0.53625285,32606.0,32601.0,0.01266406]
[1625734882840,0.53625285,32606.0,32605.0,0.1]
[1625734882992,0.77673477,32607.0,32605.0,0.1]
[1625734883140,0.24057544,32607.0,32605.0,0.105001]
[1625734883290,2.21197413,32609.0,32605.0,0.11766425]
[1625734883441,0.53615438,32608.0,32605.0,0.01766425]
[1625734883590,2.21196877,32609.0,32607.0,0.48115088]
[1625734883889,0.53615728,32608.0,32607.0,0.58115088]
[1625734884360,1.67581684,32609.0,32607.0,0.58115088]
[1625734884361,1.49395243,32609.0,32607.0,1.04474879]
[1625734884649,0.9573,32609.0,32607.0,1.04474879]
[1625734884792,0.9573,32609.0,32607.0,0.94474879]
[1625734884969,0.9573,32609.0,32608.0,0.00361795]
[1625734885096,1.67282124,32609.0,32608.0,0.00361795]
[1625734885250,1.67282124,32609.0,32608.0,0.10361795]
[1625734885251,2.20951456,32609.0,32608.0,0.10361795]
[1625734885402,3.28272236,32609.0,32608.0,0.56407195]
[1625734885544,4.53481376,32609.0,32608.0,0.56407195]
[1625734886021,4.53481376,32609.0,32608.0,0.10361795]
[1625734886022,5.53481376,32609.0,32608.0,0.10361795]
[1625734886303,7.58044519,32609.0,32608.0,0.1]
[1625734886489,8.58044519,32609.0,32608.0,0.1]
[1625734886630,7.58044519,32609.0,32608.0,0.1]
[1625734886781,5.53481376,32609.0,32600.0,0.48115088]
[1625734886921,5.81506376,32609.0,32592.0,0.057]
[1625734887086,5.81506376,32609.0,32601.0,0.00361926]
[1625734887087,0.53761733,32604.0,32601.0,0.00361926]
[1625734887354,0.5376261,32603.0,32593.0,0.0036194]
[1625734887501,1.0,32602.0,32593.0,0.0036194]
[1625734887648,0.48115088,32594.0,32591.0,0.24057544]
[1625734887792,0.76353088,32594.0,32591.0,0.24057544]
[1625734888097,0.76353088,32594.0,32592.0,0.00559632]
[1625734888393,0.76353088,32594.0,32593.0,0.00361939]
[1625734888695,0.76353088,32594.0,32593.0,0.46591539]
[1625734889145,0.18313088,32594.0,32593.0,0.46591539]
[1625734889296,0.18313088,32594.0,32593.0,0.55871539]
[1625734889483,0.53847165,32607.0,32593.0,0.57496221]
[1625734889598,2.03406387,32609.0,32606.0,0.48115088]
[1625734889599,0.9573,32609.0,32606.0,0.48115088]
[1625734889746,0.9573,32609.0,32606.0,0.82526088]
[1625734890045,0.9573,32609.0,32607.0,0.45944817]
[1625734890197,0.9573,32609.0,32608.0,0.1]
[1625734890495,0.9573,32609.0,32608.0,0.56373105]
[1625734891696,0.9573,32609.0,32608.0,0.80430649]
[1625734893498,1.9573,32609.0,32608.0,0.34419349]
[1625734893650,3.69556898,32609.0,32608.0,0.34419349]
[1625734893797,2.69556898,32609.0,32608.0,0.34057544]
[1625734893948,3.77297672,32609.0,32608.0,0.34057544]
[1625734894098,4.77297672,32609.0,32608.0,0.34057544]
[1625734894248,3.77297672,32609.0,32608.0,0.34057544]
[1625734895675,6.29523409,32609.0,32608.0,0.34057544]
[1625734895825,7.73172193,32609.0,32608.0,0.34057544]
[1625734896428,7.73172193,32609.0,32602.0,0.24057544]
[1625734896576,7.73172193,32609.0,32598.0,0.24057544]
[1625734896729,0.71852175,32604.0,32598.0,0.24057544]
[1625734896876,0.53893621,32603.0,32598.0,0.24057544]
[1625734897026,2.25743512,32605.0,32599.0,0.00361908]
[1625734897175,1.0,32604.0,32599.0,0.00361908]
[1625734897328,0.53892642,32605.0,32599.0,0.46428508]
[1625734897630,0.53892642,32605.0,32600.0,0.00361898]
[1625734897778,0.53892642,32605.0,32604.0,0.1]
[1625734898079,1.257342,32607.0,32604.0,0.1]
[1625734898229,1.257342,32607.0,32604.0,0.10361885]
[1625734898379,1.257342,32607.0,32605.0,0.00361883]
[1625734898530,1.70381088,32609.0,32605.0,0.00361883]
[1625734898833,1.25723841,32608.0,32605.0,0.00361883]
[1625734898981,1.25723841,32608.0,32599.0,0.0036187]
[1625734899131,1.25723841,32608.0,32598.0,0.24057544]
[1625734899284,1.25726053,32607.0,32606.0,0.00361878]
[1625734899581,1.73841141,32607.0,32599.0,0.52176075]
[1625734899733,1.73841141,32607.0,32606.0,0.00361875]
[1625734900031,2.81595654,32607.0,32606.0,0.1]
[1625734900332,2.81595654,32607.0,32606.0,0.10361885]
[1625734900481,3.81595654,32607.0,32598.0,0.29757544]
[1625734900632,0.53900832,32604.0,32598.0,0.24057544]
[1625734900931,0.53900832,32604.0,32599.0,0.00361893]
[1625734901232,0.53900832,32604.0,32599.0,0.46359093]
[1625734901384,1.738687,32607.0,32599.0,0.46359093]
[1625734901684,0.24057544,32600.0,32599.0,0.459972]
[1625734902286,0.24057544,32600.0,32599.0,0.46359054]
[1625734902437,0.24057544,32600.0,32599.0,0.56359054]
[1625734902586,0.24057544,32600.0,32599.0,0.559972]
[1625734902738,0.24057544,32600.0,32599.0,0.56359051]
[1625734903036,0.24057544,32600.0,32599.0,0.56720918]
[1625734905663,0.48115088,32600.0,32599.0,0.56720918]
[1625734907466,0.24057544,32600.0,32599.0,0.56720918]
[1625734907615,0.24057544,32600.0,32599.0,0.57625485]
[1625734907766,0.48115088,32607.0,32599.0,0.57625485]
[1625734908066,0.48115088,32607.0,32600.0,0.0126635]
[1625734908367,0.48115088,32607.0,32601.0,0.462244]
[1625734908593,0.48115088,32607.0,32606.0,0.1]
[1625734908969,0.48115088,32607.0,32606.0,0.56505423]
[1625734909643,0.48115088,32607.0,32606.0,0.80562967]
[1625734911742,0.48115088,32607.0,32606.0,1.18044144]
[1625734912193,0.48115088,32607.0,32606.0,1.18948611]
[1625734912944,0.48115088,32607.0,32606.0,1.09618611]
[1625734915120,0.48115088,32607.0,32606.0,0.81105611]
[1625734915726,0.48115088,32607.0,32606.0,0.80201144]
[1625734915878,0.74286088,32607.0,32606.0,0.80201144]
[1625734916547,0.74286088,32607.0,32606.0,0.1]
[1625734916705,1.74286088,32607.0,32606.0,0.1]
[1625734916847,1.74286088,32607.0,32599.0,0.00361851]
[1625734917147,2.28138518,32607.0,32599.0,0.00361851]
[1625734917297,1.0,32604.0,32600.0,0.00361873]
[1625734917448,1.0,32604.0,32600.0,0.46201173]
[1625734917749,0.48115088,32601.0,32600.0,0.46201173]
[1625734917899,0.48115088,32601.0,32600.0,0.458393]
[1625734918048,0.48115088,32601.0,32600.0,0.46201171]
[1625734918199,1.48115088,32601.0,32600.0,0.46201171]
[1625734918873,0.48115088,32601.0,32600.0,0.46201171]
[1625734919923,0.48115088,32601.0,32600.0,0.56201171]
[1625734920675,0.48115088,32601.0,32600.0,0.65301171]
[1625734920825,0.48115088,32601.0,32600.0,0.6620575]
[1625734921128,0.48115088,32601.0,32600.0,0.5710575]
[1625734921728,0.48115088,32601.0,32600.0,0.81163294]
[1625734922027,0.48115088,32601.0,32600.0,0.90223294]
[1625734922178,0.48115088,32601.0,32600.0,0.81163294]
[1625734925030,0.48115088,32601.0,32600.0,0.90293294]
[1625734925181,0.48115088,32601.0,32600.0,0.81163294]
[1625734926081,0.48115088,32601.0,32600.0,0.1126645]
[1625734926285,1.48115088,32601.0,32600.0,0.1126645]
[1625734927582,1.48115088,32601.0,32600.0,0.10361871]
[1625734927734,1.48115088,32601.0,32592.0,0.24057544]
[1625734927883,0.48115088,32601.0,32592.0,0.24057544]
[1625734928034,1.48115088,32601.0,32592.0,0.24057544]
[1625734928187,1.48115088,32601.0,32593.0,0.01266532]
[1625734928335,1.0,32600.0,32593.0,0.47154832]
[1625734928637,1.48115088,32601.0,32594.0,0.01266514]
[1625734928937,1.0,32600.0,32595.0,0.463001]
[1625734929385,1.48115088,32601.0,32595.0,0.463001]
[1625734929536,1.48115088,32601.0,32596.0,0.01266552]
[1625734929836,0.24057544,32597.0,32596.0,0.01266552]
[1625734929985,0.56222544,32597.0,32596.0,0.01266552]
[1625734930287,0.56222544,32597.0,32565.0,2.66955326]
[1625734930437,0.56222544,32597.0,32581.0,0.00905109]
[1625734930438,2.11922544,32597.0,32581.0,0.00905109]
[1625734930762,1.83860317,32597.0,32596.0,0.00361908]
[1625734930869,1.83860317,32597.0,32558.0,2.67868275]
[1625734930870,6.15564226,32597.0,32582.0,0.0126684]
[1625734930983,1.0,32585.0,32582.0,0.0126684]
[1625734931139,1.28362,32585.0,32572.0,0.01809895]
[1625734931262,0.057,32584.0,32572.0,0.01809895]
[1625734931417,0.057,32584.0,32583.0,0.01266917]
[1625734931787,1.77872632,32584.0,32573.0,0.01266948]
[1625734932087,1.77872632,32584.0,32574.0,0.00905359]
[1625734932237,1.0,32581.0,32574.0,0.00905359]
[1625734932388,0.057,32580.0,32574.0,0.459897]
[1625734932687,1.0,32579.0,32568.0,0.462504]
[1625734932838,0.057,32578.0,32569.0,0.00123]
[1625734932988,1.0,32575.0,32569.0,0.01028481]
[1625734933138,0.057,32574.0,32566.0,0.01810126]
[1625734933288,0.057,32574.0,32570.0,0.452065]
[1625734933439,0.057,32574.0,32570.0,0.46473745]
[1625734933588,0.057,32574.0,32570.0,0.01267245]
[1625734933738,0.057,32574.0,32571.0,0.01267305]
[1625734933889,0.057,32574.0,32573.0,0.1]
[1625734934195,0.057,32574.0,32573.0,0.13134028]
[1625734934338,0.24057544,32584.0,32573.0,0.13134028]
[1625734934488,0.057,32583.0,32574.0,0.00905433]
[1625734934789,0.057,32583.0,32574.0,0.02172545]
[1625734934940,0.057,32583.0,32575.0,0.47070611]
[1625734935090,1.057,32583.0,32575.0,0.461652]
[1625734935239,1.057,32583.0,32576.0,0.00362046]
[1625734935389,1.0,32581.0,32576.0,0.00362046]
[1625734935539,0.057,32580.0,32576.0,0.00362046]
[1625734935690,0.057,32580.0,32577.0,0.007855]
[1625734935841,0.72172632,32578.0,32577.0,0.007855]
[1625734936140,0.77872632,32578.0,32577.0,0.007855]
[1625734936442,0.77872632,32578.0,32577.0,0.10362054]
[1625734936596,1.77872632,32578.0,32577.0,0.10362054]
[1625734936892,1.77872632,32578.0,32577.0,0.00362054]
[1625734936893,1.72172632,32578.0,32577.0,0.00362054]
[1625734937041,0.77872632,32578.0,32577.0,0.00362054]
[1625734937193,0.77872632,32578.0,32577.0,0.10362054]
[1625734937344,1.77872632,32578.0,32577.0,0.10362054]
[1625734937494,1.77872632,32578.0,32577.0,0.1]
[1625734937644,0.77872632,32578.0,32577.0,0.10362084]
[1625734937794,1.77872632,32578.0,32577.0,0.10362084]
[1625734938620,0.77872632,32578.0,32577.0,0.10362084]
[1625734938770,1.77872632,32578.0,32577.0,0.10362084]
[1625734939520,1.77872632,32578.0,32558.0,2.01729735]
[1625734939670,1.77872632,32578.0,32559.0,0.00905577]
[1625734939820,0.72172632,32560.0,32558.0,0.00905577]
[1625734939971,1.04359632,32560.0,32558.0,0.00905577]
[1625734940121,1.04359632,32560.0,32558.0,0.46884077]
[1625734940272,1.04359632,32560.0,32559.0,0.01267402]
[1625734940422,1.04359632,32560.0,32559.0,0.02172934]
[1625734940573,1.04359632,32560.0,32559.0,0.47776734]
[1625734941022,0.72172632,32560.0,32559.0,0.47776734]
[1625734941323,0.24057544,32564.0,32559.0,0.47776734]
[1625734941623,0.24057544,32564.0,32560.0,2.03501251]
[1625734941775,0.24057544,32564.0,32561.0,0.10125455]
[1625734941924,0.24057544,32564.0,32563.0,0.48115088]
[1625734942074,0.24057544,32564.0,32563.0,0.59020573]
[1625734942225,0.24057544,32564.0,32563.0,1.05089273]
[1625734942376,0.24057544,32564.0,32563.0,1.05451377]
[1625734944254,0.24057544,32564.0,32563.0,1.06356622]
[1625734946957,0.24057544,32564.0,32563.0,1.05451377]
[1625734948385,0.24057544,32564.0,32563.0,1.06356671]
[1625734948986,0.24057544,32564.0,32563.0,1.05451377]
[1625734949137,0.52623544,32564.0,32563.0,1.05451377]
[1625734950261,0.52623544,32564.0,32563.0,1.06356695]
[1625734951165,0.52623544,32564.0,32563.0,1.05994591]
[1625734951324,0.52623544,32564.0,32563.0,1.06356728]
[1625734953266,0.28566,32564.0,32563.0,1.06356728]
[1625734953417,0.24057544,32571.0,32563.0,1.15656728]
[1625734953567,0.24057544,32571.0,32564.0,0.00905579]
[1625734953721,0.24057544,32571.0,32565.0,0.0909]
[1625734954017,0.24057544,32571.0,32568.0,0.24057544]
[1625734954318,0.24057544,32571.0,32569.0,0.46205706]
[1625734954469,0.24057544,32571.0,32570.0,0.1]
[1625734954771,0.24057544,32571.0,32570.0,0.57069125]
[1625734954919,0.24057544,32571.0,32570.0,0.57431215]
[1625734955072,0.24057544,32571.0,32570.0,0.57069125]
[1625734955221,0.24057544,32571.0,32570.0,0.58336443]
[1625734956877,0.24057544,32574.0,32570.0,0.58336443]
[1625734957027,1.18387544,32577.0,32570.0,0.87765443]
[1625734957328,1.18387544,32577.0,32571.0,0.02172668]
[1625734957477,1.18387544,32577.0,32572.0,0.00905473]
[1625734957626,1.18387544,32577.0,32573.0,0.0932]
[1625734957777,1.18387544,32577.0,32576.0,0.1]
[1625734958076,1.18387544,32577.0,32576.0,0.58115088]
[1625734958227,1.18387544,32577.0,32576.0,0.59768668]
[1625734959618,1.18387544,32577.0,32576.0,0.61578814]
[1625734959737,1.24087544,32577.0,32576.0,0.59768668]
[1625734960177,1.24087544,32577.0,32576.0,0.35711124]
[1625734960478,1.24087544,32577.0,32576.0,0.1165358]
[1625734960812,2.24087544,32577.0,32576.0,0.1165358]
[1625734961097,1.24087544,32577.0,32576.0,0.1165358]
[1625734962477,1.24087544,32577.0,32576.0,0.4630758]
[1625734962478,1.18387544,32577.0,32576.0,0.4630758]
[1625734963033,0.9433,32577.0,32576.0,0.4630758]
[1625734963183,0.9433,32577.0,32576.0,0.47212927]
[1625734963331,0.9433,32577.0,32576.0,0.56372927]
[1625734963633,0.9433,32577.0,32576.0,0.58182794]
[1625734964084,0.9433,32577.0,32576.0,1.06297882]
[1625734964233,0.9079,32577.0,32576.0,1.06297882]
[1625734964385,0.8983,32577.0,32576.0,1.06297882]
[1625734964532,0.8743,32577.0,32576.0,1.06297882]
[1625734964685,0.8353,32577.0,32576.0,1.06297882]
[1625734966637,0.8353,32577.0,32576.0,0.71643882]
[1625734967705,0.8353,32577.0,32576.0,0.62483882]
[1625734968303,0.8353,32577.0,32576.0,0.60674015]
[1625734969863,0.8353,32577.0,32576.0,0.59768668]
[1625734970171,0.8353,32577.0,32576.0,0.60674019]
[1625734970766,0.8353,32577.0,32576.0,0.59768668]
[1625734970915,0.8353,32577.0,32576.0,0.60674008]
[1625734971065,0.8353,32577.0,32576.0,0.59768668]
[1625734971683,0.8353,32577.0,32576.0,0.60674033]
[1625734972890,0.8353,32577.0,32576.0,0.44404342]
[1625734973185,0.8353,32577.0,32576.0,0.91471183]
[1625734973622,0.8353,32577.0,32576.0,1.00641183]
[1625734973941,0.8353,32577.0,32576.0,0.90565842]
[1625734974217,0.8923,32577.0,32576.0,0.90565842]
[1625734976960,0.8923,32577.0,32576.0,0.56968629]
[1625734978122,1.13287544,32577.0,32576.0,0.56968629]
[1625734979648,1.07587544,32577.0,32576.0,0.66993988]
[1625734979923,1.07587544,32577.0,32576.0,0.68803814]
[1625734980073,0.12817544,32577.0,32576.0,0.67898455]
[1625734980224,0.924,32579.0,32576.0,0.67898455]
[1625734980377,0.924,32579.0,32578.0,5.1318]
[1625734980524,0.924,32579.0,32578.0,5.42774172]
[1625734980674,0.8636,32579.0,32578.0,5.45850529]
[1625734980824,0.8329,32579.0,32578.0,5.91297429]
[1625734981584,0.7712,32579.0,32578.0,5.91297429]
[1625734983280,0.7712,32579.0,32578.0,5.42340406]
[1625734983827,0.7712,32579.0,32578.0,5.40530784]
[1625734984428,0.7712,32579.0,32578.0,5.42340637]
[1625734984802,0.7712,32579.0,32578.0,5.61440637]
[1625734986933,0.7712,32579.0,32578.0,5.52340637]
[1625734987210,0.3027,32581.0,32578.0,5.52340637]
[1625734987211,0.54050706,32590.0,32578.0,6.02340637]
[1625734987440,0.32850706,32590.0,32578.0,5.52340637]
[1625734987594,0.18020628,32596.0,32579.0,0.50905236]
[1625734987682,0.72028504,32598.0,32580.0,0.0911]
[1625734987805,0.18018952,32601.0,32581.0,0.00905115]
[1625734988121,0.24057544,32598.0,32597.0,0.34057544]
[1625734988410,0.24057544,32598.0,32597.0,0.25324163]
[1625734988555,0.24057544,32598.0,32597.0,0.70949063]
[1625734988705,0.24057544,32598.0,32597.0,0.80949063]
[1625734989021,0.24057544,32598.0,32597.0,0.56891519]
[1625734989304,0.24057544,32598.0,32597.0,0.55986791]
[1625734989681,0.42076455,32598.0,32597.0,0.55986791]
[1625734990131,0.78079452,32598.0,32597.0,0.55986791]
[1625734990430,1.5012143,32598.0,32597.0,0.55986791]
[1625734990882,0.87349452,32598.0,32597.0,0.55986791]
[1625734991033,2.50123025,32598.0,32590.0,0.24057544]
[1625734991183,2.50123025,32598.0,32586.0,0.24057544]
[1625734991332,0.1802477,32595.0,32586.0,0.24057544]
[1625734991482,0.1802477,32595.0,32587.0,0.01266826]
[1625734991483,0.18025396,32594.0,32587.0,0.01266826]
[1625734991858,0.18025396,32594.0,32588.0,0.461423]
[1625734992012,1.0,32592.0,32588.0,0.461423]
[1625734992159,0.48115088,32589.0,32587.0,0.01266826]
[1625734992309,1.48115088,32589.0,32586.0,0.24057544]
[1625734992459,0.48115088,32589.0,32586.0,0.24057544]
[1625734992609,0.48115088,32589.0,32588.0,0.00361986]
[1625734992760,0.48115088,32589.0,32587.0,0.01266906]
[1625734993362,1.0,32588.0,32587.0,0.01266906]
[1625734993511,0.48115088,32589.0,32587.0,0.01266906]
[1625734994413,0.48115088,32589.0,32587.0,0.00361973]
[1625734994562,1.48115088,32589.0,32587.0,0.00361973]
[1625734994864,0.48115088,32589.0,32587.0,0.00361973]
[1625734995013,0.48115088,32589.0,32587.0,0.0126697]
[1625734995614,1.48115088,32589.0,32587.0,0.0126697]
[1625734995766,1.48115088,32589.0,32580.0,0.2929]
[1625734995974,1.0,32588.0,32576.0,0.02317196]
[1625734996101,1.0,32588.0,32577.0,0.00905384]
[1625734996233,0.48115088,32578.0,32577.0,0.00905384]
[1625734996363,0.86371088,32578.0,32577.0,0.02172467]
[1625734996663,0.86371088,32578.0,32577.0,0.48451067]
[1625734996964,0.80671088,32578.0,32577.0,0.48451067]
[1625734997262,0.32556,32578.0,32577.0,0.48451067]
[1625734997413,0.48115088,32589.0,32577.0,0.58451067]
[1625734997414,0.057,32586.0,32577.0,0.58451067]
[1625734997565,0.057,32586.0,32577.0,0.84347067]
[1625734997713,0.057,32586.0,32578.0,0.00905201]
[1625734997938,0.057,32586.0,32578.0,0.03981691]
[1625734998087,0.057,32586.0,32579.0,0.461187]
[1625734998253,0.057,32586.0,32585.0,0.24057544]
[1625734998401,0.057,32586.0,32585.0,0.1]
[1625734998690,0.057,32586.0,32585.0,0.56389968]
[1625735000268,0.29757544,32586.0,32585.0,0.56389968]
[1625735000419,1.29757544,32586.0,32585.0,0.56389968]
[1625735000869,0.29757544,32586.0,32585.0,0.56389968]
[1625735003726,0.60900544,32586.0,32585.0,0.56389968]
[1625735005076,0.29757544,32586.0,32585.0,0.56389968]
[1625735006278,0.29757544,32586.0,32585.0,0.57295181]
[1625735006578,0.29757544,32586.0,32585.0,0.56389968]
[1625735006878,0.057,32586.0,32585.0,0.56389968]
[1625735007029,0.057,32589.0,32585.0,0.56389968]
[1625735007330,0.057,32589.0,32585.0,0.46028006]
[1625735007478,0.057,32589.0,32586.0,0.01266838]
[1625735007779,0.057,32589.0,32587.0,0.462147]
[1625735007929,0.057,32589.0,32588.0,0.1]
[1625735008078,0.057,32589.0,32588.0,0.11266853]
[1625735008229,0.77872632,32589.0,32588.0,0.11266853]
[1625735009658,0.77872632,32589.0,32588.0,0.57266753]
[1625735012287,0.77872632,32589.0,32588.0,0.81324297]
[1625735015821,1.08626632,32589.0,32588.0,0.57266753]
[1625735015971,1.357269,32589.0,32588.0,0.57266753]
[1625735016121,1.62773101,32589.0,32588.0,0.57266753]
[1625735016571,1.17668154,32589.0,32588.0,0.57266753]
[1625735016871,1.02926632,32589.0,32588.0,0.57266753]
[1625735017028,0.72172632,32589.0,32588.0,0.57266753]
[1625735017171,0.77872632,32589.0,32588.0,0.58171781]
[1625735018377,0.77872632,32589.0,32588.0,0.81324297]
[1625735019275,0.77872632,32589.0,32588.0,0.57266753]
[1625735019574,0.77872632,32589.0,32588.0,0.58171832]
[1625735020323,0.72172632,32589.0,32588.0,0.82229376]
[1625735021525,0.77872632,32589.0,32588.0,0.82229376]
[1625735022124,0.77872632,32589.0,32588.0,0.81324297]
[1625735024003,0.77872632,32589.0,32588.0,0.57266753]
[1625735024308,0.86915174,32589.0,32588.0,0.57266753]
[1625735024605,1.32039418,32589.0,32588.0,0.57266753]
[1625735024755,2.0425822,32589.0,32588.0,0.57266753]
[1625735025655,1.32039418,32589.0,32588.0,0.57266753]
[1625735026105,0.95940588,32589.0,32588.0,0.57266753]
[1625735026405,1.04983638,32589.0,32588.0,0.57266753]
[1625735026556,0.95940588,32589.0,32588.0,0.57266753]
[1625735026856,0.86915856,32589.0,32588.0,0.57266753]
[1625735027008,0.77872632,32589.0,32588.0,0.57266753]
[1625735028357,0.86915322,32589.0,32588.0,0.57266753]
[1625735028809,0.77872632,32589.0,32588.0,0.57266753]
[1625735029107,0.8691572,32589.0,32588.0,0.57266753]
[1625735029486,1.04983987,32589.0,32588.0,0.57266753]